bitfinex-derivatives/quotes_BTCF0:USTF0_20251210
["timestamp","ask_amount","ask_price","bid_price","bid_amount"]
[1765406976208,0.002,92508.0,92507.0,1.22152178]
[1765406976706,0.002,92508.0,92507.0,1.27985633]
[1765406977114,0.002,92508.0,92507.0,1.22152178]
[1765406977703,0.32901,92508.0,92507.0,1.22152178]
[1765406977912,0.65311,92508.0,92507.0,1.22152178]
[1765406978719,0.002,92508.0,92507.0,1.22152178]
[1765406979318,0.32901,92508.0,92507.0,1.22152178]
[1765406979510,0.002,92508.0,92507.0,1.22152178]
[1765406982616,0.32901,92508.0,92507.0,1.22152178]
[1765406983121,0.32901,92508.0,92507.0,1.22339492]
[1765406983822,0.002,92508.0,92507.0,1.22339492]
[1765406989524,0.32901,92508.0,92507.0,1.22339492]
[1765406989829,0.002,92508.0,92507.0,1.22339492]
[1765406990927,0.32901,92508.0,92507.0,1.22339492]
[1765406991928,0.32901,92508.0,92507.0,1.58419492]
[1765406992335,0.002,92508.0,92507.0,1.58419492]
[1765406992725,0.32901,92508.0,92507.0,1.58419492]
[1765406993729,0.65311,92508.0,92507.0,1.58419492]
[1765406994121,0.84809,92508.0,92507.0,1.58419492]
[1765406994524,0.65311,92508.0,92507.0,1.58419492]
[1765406994730,0.32901,92508.0,92507.0,1.58419492]
[1765406995126,0.002,92508.0,92507.0,1.58419492]
[1765406995530,0.65311,92508.0,92507.0,1.58419492]
[1765406995732,0.002,92508.0,92507.0,1.58419492]
[1765406997130,0.32901,92508.0,92507.0,1.58419492]
[1765406997525,0.002,92508.0,92507.0,1.58419492]
[1765406999530,0.34293,92508.0,92507.0,1.58419492]
[1765406999933,0.34293,92508.0,92507.0,1.6010909]
[1765407000431,0.002,92508.0,92507.0,1.6010909]
[1765407004132,0.34293,92508.0,92507.0,1.6010909]
[1765407004327,0.002,92508.0,92507.0,1.6010909]
[1765407005633,0.002,92508.0,92507.0,1.5902829]
[1765407005634,0.89709,92508.0,92507.0,1.5902829]
[1765407006429,0.89709,92508.0,92507.0,1.64866528]
[1765407006840,0.89709,92508.0,92507.0,1.6317693]
[1765407007928,0.89709,92508.0,92504.0,0.05838238]
[1765407007929,0.010808,92507.0,92504.0,0.05838238]
[1765407008130,0.010809,92498.0,92479.0,0.3608]
[1765407008330,1.05622,92484.0,92470.0,0.56251169]
[1765407009339,1.0670307,92484.0,92470.0,0.56251169]
[1765407009732,1.0690307,92484.0,92470.0,0.56251169]
[1765407010338,1.0690307,92484.0,92470.0,0.14027169]
[1765407010539,1.0710307,92484.0,92465.0,0.0010815]
[1765407010738,0.9059028,92466.0,92465.0,0.6782815]
[1765407011043,0.9059028,92466.0,92465.0,0.0010815]
[1765407011232,0.9059028,92466.0,92465.0,0.6782815]
[1765407011439,0.9059028,92466.0,92465.0,0.3393815]
[1765407011644,0.90601459,92466.0,92465.0,0.0010815]
[1765407011829,0.90801459,92466.0,92465.0,0.0220815]
[1765407012935,0.90801459,92466.0,92465.0,0.3603815]
[1765407013132,0.00211179,92466.0,92465.0,0.6992815]
[1765407013333,0.3608,92482.0,92481.0,0.6772]
[1765407013537,0.41906181,92503.0,92492.0,0.6772]
[1765407013732,0.0108091,92498.0,92492.0,0.6772]
[1765407013935,0.3608,92511.0,92492.0,1.038]
[1765407014131,0.0108082,92505.0,92503.0,0.0108084]
[1765407014440,0.25793181,92520.0,92503.0,0.0108084]
[1765407014441,0.0108079,92508.0,92505.0,0.0108082]
[1765407014644,0.0108079,92508.0,92507.0,0.66999]
[1765407015143,0.7195179,92508.0,92507.0,0.66999]
[1765407015540,0.7235179,92508.0,92507.0,0.66999]
[1765407016035,0.7195179,92508.0,92507.0,0.66999]
[1765407016337,0.7245179,92508.0,92507.0,0.67099]
[1765407016543,0.7245179,92508.0,92507.0,0.34504]
[1765407016739,0.7265179,92508.0,92507.0,0.34504]
[1765407016939,0.7265179,92508.0,92507.0,0.84888]
[1765407017548,0.7225179,92508.0,92507.0,0.50484]
[1765407017845,0.7265179,92508.0,92507.0,0.50584]
[1765407018143,0.7265179,92508.0,92507.0,0.84988]
[1765407018337,0.7265179,92508.0,92507.0,0.002]
[1765407018739,1.0873179,92508.0,92507.0,0.002]
[1765407018950,0.7265179,92508.0,92507.0,0.002]
[1765407019136,1.0873179,92508.0,92507.0,0.002]
[1765407019334,0.7265179,92508.0,92507.0,0.002]
[1765407019649,1.0873179,92508.0,92507.0,0.002]
[1765407020032,0.7195189,92499.0,92498.0,0.00016221]
[1765407021040,0.7195216,92476.0,92475.0,1.03079]
[1765407021236,0.7195216,92476.0,92475.0,1.53459]
[1765407022448,0.7205216,92476.0,92475.0,1.54659]
[1765407022646,0.7215216,92476.0,92475.0,1.55959]
[1765407023155,1.0823216,92476.0,92475.0,0.52884]
[1765407023540,0.7195228,92466.0,92465.0,0.0010815]
[1765407023743,1.0803228,92466.0,92465.0,0.0010815]
[1765407025146,1.0813228,92466.0,92465.0,0.0010815]
[1765407025849,0.3756128,92466.0,92465.0,0.6720715]
[1765407026034,0.0108117,92476.0,92475.0,0.66999]
[1765407026345,0.3608,92483.0,92475.0,0.66999]
[1765407026346,0.3608,92483.0,92482.0,0.66999]
[1765407026548,0.3608,92492.0,92484.0,0.81007]
[1765407026748,0.3608,92492.0,92491.0,0.66999]
[1765407026934,0.3608,92492.0,92491.0,1.17387]
[1765407028059,0.00016221,92501.0,92500.0,0.6807988]
[1765407029353,0.01097091,92501.0,92500.0,0.6807988]
[1765407029645,0.01497091,92501.0,92500.0,0.6817988]
[1765407030951,0.02297091,92501.0,92500.0,0.6817988]
[1765407031454,0.02197091,92501.0,92500.0,0.6817988]
[1765407034053,0.02197091,92501.0,92500.0,0.001]
[1765407034054,0.72358091,92501.0,92500.0,0.001]
[1765407034443,0.72358091,92501.0,92500.0,0.33747]
[1765407034951,0.72358091,92501.0,92500.0,0.67425]
[1765407035448,0.72358091,92501.0,92500.0,0.001]
[1765407035645,0.72358091,92501.0,92500.0,0.67425]
[1765407037141,0.72358091,92501.0,92500.0,0.33747]
[1765407037541,0.72358091,92501.0,92500.0,0.67425]
[1765407037941,0.02197091,92501.0,92500.0,0.67425]
[1765407038636,0.02197091,92501.0,92500.0,1.03505]
[1765407039946,0.02197091,92501.0,92500.0,1.53881]
[1765407041048,0.72358091,92501.0,92500.0,1.53881]
[1765407044453,0.02197091,92501.0,92500.0,1.53881]
[1765407044867,0.37942091,92501.0,92500.0,1.53881]
[1765407045170,0.02197091,92501.0,92500.0,1.5496188]
[1765407048061,0.02197091,92501.0,92500.0,1.1888188]
[1765407048358,0.02197091,92501.0,92500.0,1.5496188]
[1765407051249,0.02197091,92501.0,92500.0,1.5495788]
[1765407052853,0.02197091,92501.0,92500.0,1.57962853]
[1765407053864,0.02197091,92501.0,92500.0,1.57963638]
[1765407054162,0.37942091,92501.0,92500.0,1.57963638]
[1765407054665,0.02197091,92501.0,92500.0,1.57963638]
[1765407056459,0.02197091,92501.0,92500.0,1.07591638]
[1765407056762,0.02197091,92501.0,92500.0,1.57963638]
[1765407057061,0.02197091,92501.0,92500.0,1.59653431]
[1765407060663,0.02197091,92501.0,92500.0,1.57963638]
[1765407060864,0.02197091,92501.0,92500.0,1.59653431]
[1765407061064,0.02197091,92501.0,92500.0,1.57963638]
[1765407061951,0.02197091,92501.0,92500.0,1.58572551]
[1765407063054,0.02197091,92501.0,92500.0,1.56882758]
[1765407064270,0.02197091,92501.0,92500.0,1.58572576]
[1765407065665,0.02197091,92501.0,92500.0,1.6244615]
[1765407067372,0.02197091,92501.0,92500.0,1.58572576]
[1765407067664,0.02197091,92501.0,92500.0,1.62465281]
[1765407067865,0.02197091,92501.0,92500.0,1.58572576]
[1765407068066,0.02197091,92501.0,92500.0,1.08200576]
[1765407068265,0.02197091,92501.0,92500.0,1.58568576]
[1765407069467,0.38025091,92501.0,92500.0,1.58568576]
[1765407069765,0.02197091,92501.0,92500.0,1.58568576]
[1765407070268,0.36260091,92501.0,92500.0,1.58568576]
[1765407070569,0.69247091,92501.0,92500.0,1.58568576]
[1765407071769,0.69247091,92501.0,92500.0,1.62461478]
[1765407073166,0.36260091,92501.0,92500.0,1.62461478]
[1765407073568,0.69247091,92501.0,92500.0,1.62461478]
[1765407073767,0.02197091,92501.0,92500.0,1.62461478]
[1765407074069,0.02197091,92501.0,92500.0,1.58568576]
[1765407074070,0.36260091,92501.0,92500.0,1.58568576]
[1765407075265,0.69247091,92501.0,92500.0,0.71617472]
[1765407077160,0.69247091,92501.0,92500.0,0.57021818]
[1765407080068,0.02197091,92501.0,92500.0,0.57021818]
[1765407080269,0.69247091,92501.0,92500.0,0.57021818]
[1765407081972,0.69247091,92501.0,92500.0,0.57121818]
[1765407085561,0.69247091,92501.0,92500.0,0.57113818]
[1765407090175,0.69247091,92501.0,92500.0,0.61007012]
[1765407090871,0.69247091,92501.0,92500.0,0.57113818]
[1765407091264,0.69247091,92501.0,92500.0,0.04271818]
[1765407091465,0.69247091,92501.0,92500.0,0.54627818]
[1765407091670,0.69247091,92501.0,92500.0,0.5542]
[1765407092080,0.69247091,92501.0,92500.0,0.57109868]
[1765407092269,0.69247091,92501.0,92500.0,0.5542]
[1765407093280,0.69247091,92501.0,92500.0,0.05064]
[1765407093581,0.69247091,92501.0,92500.0,0.5542]
[1765407093879,0.02197091,92501.0,92500.0,0.5542]
[1765407094984,0.71474091,92501.0,92500.0,0.5542]
[1765407095180,0.71474091,92501.0,92500.0,0.52938]
[1765407095381,0.71474091,92501.0,92500.0,0.5542]
[1765407100383,0.02197091,92501.0,92500.0,0.5542]
[1765407100577,0.02197091,92501.0,92500.0,0.5710584]
[1765407100970,0.37642091,92501.0,92500.0,0.5710584]
[1765407101175,0.71474091,92501.0,92500.0,0.5710584]
[1765407102376,0.02197091,92501.0,92500.0,0.5710584]
[1765407102576,0.71474091,92501.0,92500.0,0.5710584]
[1765407104085,0.71474091,92501.0,92500.0,0.6099845]
[1765407106188,0.37642091,92501.0,92500.0,0.6099845]
[1765407106380,0.71474091,92501.0,92500.0,0.5710584]
[1765407107087,0.71474091,92501.0,92500.0,0.60998466]
[1765407113990,0.71474091,92501.0,92500.0,0.5710584]
[1765407114894,0.02197091,92501.0,92500.0,0.5710184]
[1765407115196,0.37642091,92501.0,92500.0,0.5710184]
[1765407115380,0.71474091,92501.0,92500.0,0.5710182]
[1765407116600,0.02197091,92501.0,92500.0,0.5710182]
[1765407116895,0.71474091,92501.0,92500.0,0.5710182]
[1765407118803,0.02197091,92501.0,92500.0,0.5710182]
[1765407119385,0.70464091,92501.0,92500.0,0.5710182]
[1765407120700,0.70464091,92501.0,92500.0,0.57101812]
[1765407122987,0.70464091,92501.0,92500.0,0.55412]
[1765407124404,0.70464091,92501.0,92500.0,0.55408]
[1765407125306,0.70464091,92501.0,92500.0,0.05064]
[1765407125508,0.70464091,92501.0,92500.0,0.55408]
[1765407131611,0.70464091,92501.0,92500.0,0.58618957]
[1765407133106,0.70464091,92501.0,92500.0,0.60308776]
[1765407133308,0.70464091,92501.0,92500.0,0.09964776]
[1765407133507,0.70464091,92501.0,92500.0,0.60304776]
[1765407134213,0.70464091,92501.0,92500.0,0.09964776]
[1765407134512,0.70464091,92501.0,92500.0,0.60304776]
[1765407134713,0.70464091,92501.0,92500.0,0.60300776]
[1765407140715,0.02197091,92501.0,92500.0,0.60300776]
[1765407141210,0.73199091,92501.0,92500.0,0.60300776]
[1765407142314,0.73199091,92501.0,92500.0,0.60296776]
[1765407144121,0.73199091,92501.0,92500.0,0.09964776]
[1765407144421,0.73199091,92501.0,92500.0,0.56413656]
[1765407144622,0.73199091,92501.0,92500.0,0.58895656]
[1765407144811,0.73199091,92501.0,92500.0,0.57814776]
[1765407145011,0.73199091,92501.0,92500.0,0.60296776]
[1765407145210,0.73199091,92501.0,92500.0,0.61377656]
[1765407148225,0.73199091,92501.0,92500.0,0.59687837]
[1765407148426,0.73199091,92501.0,92500.0,0.61377642]
[1765407153830,0.73199091,92501.0,92500.0,0.60296762]
[1765407155536,0.73199091,92501.0,92500.0,0.57814762]
[1765407156241,0.73199091,92501.0,92500.0,0.60296762]
[1765407158356,0.73199091,92501.0,92500.0,0.57814762]
[1765407159755,0.73199091,92501.0,92500.0,0.60296762]
[1765407162350,0.73199091,92501.0,92500.0,0.60288762]
[1765407162656,0.73199091,92501.0,92500.0,0.57806762]
[1765407163051,0.73199091,92501.0,92500.0,0.60288762]
[1765407164260,0.73199091,92501.0,92500.0,0.57077805]
[1765407164444,0.73199091,92501.0,92500.0,0.60431338]
[1765407166166,0.73199091,92501.0,92500.0,0.66270955]
[1765407166561,0.73199091,92501.0,92500.0,0.63788955]
[1765407166864,0.73199091,92501.0,92500.0,0.66270955]
[1765407167058,0.73199091,92501.0,92500.0,0.67351835]
[1765407167259,0.73199091,92501.0,92500.0,0.66270955]
[1765407171762,0.73199091,92501.0,92500.0,0.10982955]
[1765407171956,0.0108102,92488.0,92487.0,0.0773241]
[1765407172154,0.0108102,92488.0,92487.0,0.7725]
[1765407172155,0.7069702,92488.0,92487.0,0.7725]
[1765407172356,0.7069702,92488.0,92487.0,0.8503592]
[1765407172669,0.7069702,92488.0,92487.0,0.7725]
[1765407173361,0.7129702,92488.0,92487.0,0.7725]
[1765407173865,0.7149702,92488.0,92487.0,0.7735]
[1765407179768,0.7149702,92488.0,92487.0,0.77346]
[1765407180160,0.7149702,92488.0,92487.0,0.2703]
[1765407180362,0.7149702,92488.0,92487.0,0.77346]
[1765407181255,0.7149702,92488.0,92487.0,0.2703]
[1765407181459,0.7149702,92488.0,92487.0,0.77346]
[1765407181878,0.3716092,92497.0,92496.0,0.36123]
[1765407182065,0.57131,92508.0,92507.0,0.280108]
[1765407182066,0.3608,92508.0,92507.0,0.280108]
[1765407182271,0.00108091,92515.0,92514.0,0.2801072]
[1765407182470,0.00108091,92515.0,92514.0,0.3701072]
[1765407182669,0.00108091,92515.0,92514.0,0.7701072]
[1765407183371,0.00708091,92515.0,92514.0,0.7701072]
[1765407183679,0.00708091,92515.0,92514.0,0.6801072]
[1765407183868,0.00108091,92515.0,92514.0,0.71429116]
[1765407184063,0.00708091,92515.0,92514.0,0.71429116]
[1765407184267,0.00908091,92515.0,92514.0,0.71529116]
[1765407188074,0.00908091,92515.0,92514.0,1.21833116]
[1765407191882,0.00908091,92515.0,92514.0,1.27646968]
[1765407192385,0.00908091,92515.0,92514.0,1.21833116]
[1765407196189,0.00908091,92515.0,92514.0,1.2291572]
[1765407197085,0.00908091,92515.0,92514.0,0.8291572]
[1765407198786,0.00908091,92515.0,92514.0,0.9496572]
[1765407199486,0.00908091,92515.0,92514.0,0.93883116]
[1765407200183,0.00908091,92515.0,92514.0,0.94945788]
[1765407206585,0.00908091,92515.0,92514.0,0.93883116]
[1765407206986,0.00908091,92515.0,92514.0,0.94948239]
[1765407208292,0.00908091,92515.0,92514.0,1.02726436]
[1765407209194,0.00908091,92515.0,92514.0,0.94948239]
[1765407210685,0.00908091,92515.0,92514.0,0.82898239]
[1765407212292,0.68365221,92524.0,92523.0,0.2801061]
[1765407212499,0.68365221,92524.0,92523.0,1.17793006]
[1765407214792,0.34288221,92524.0,92523.0,1.17893006]
[1765407214993,0.34588221,92524.0,92523.0,1.17993006]
[1765407215192,0.68865221,92524.0,92523.0,1.17993006]
[1765407216003,0.00516221,92524.0,92523.0,1.17993006]
[1765407216901,0.00516221,92524.0,92523.0,0.81913006]
[1765407217099,0.00516221,92524.0,92523.0,1.17993006]
[1765407217989,0.00516221,92524.0,92523.0,1.36993006]
[1765407218195,0.00516221,92524.0,92523.0,1.26993006]
[1765407218395,0.56282,92548.0,92547.0,0.2697833]
[1765407218597,0.20202,92548.0,92547.0,1.16756726]
[1765407219098,0.20202,92552.0,92551.0,0.2697829]
[1765407219296,0.20202,92552.0,92551.0,0.66476686]
[1765407219901,0.20202,92560.0,92555.0,0.25898]
[1765407220105,0.20202,92560.0,92559.0,0.6305819]
[1765407220305,0.20202,92560.0,92559.0,0.66476586]
[1765407221308,0.20502,92560.0,92559.0,0.66476586]
[1765407221801,0.20802,92560.0,92559.0,0.66576586]
[1765407222804,0.006,92560.0,92559.0,0.74340716]
[1765407222998,0.006,92560.0,92559.0,0.66576586]
[1765407224804,0.00016211,92561.0,92560.0,0.25898]
[1765407225111,0.00016211,92561.0,92560.0,0.29316396]
[1765407225303,0.00016211,92561.0,92560.0,0.37316396]
[1765407226009,0.00316211,92561.0,92560.0,0.37416396]
[1765407226601,0.00316211,92561.0,92560.0,0.46093396]
[1765407226797,0.00416211,92561.0,92560.0,0.47393396]
[1765407227204,0.20202,92575.0,92574.0,0.25898]
[1765407227401,0.20202,92575.0,92574.0,1.52824416]
[1765407228603,0.20402,92575.0,92574.0,1.55124416]
[1765407231102,0.002,92575.0,92574.0,1.55124416]
[1765407232219,0.00016211,92584.0,92583.0,0.2677791]
[1765407232505,0.88551,92605.0,92604.0,0.2657767]
[1765407232714,0.88551,92605.0,92604.0,0.89986632]
[1765407232910,0.0107967,92604.0,92600.0,0.42943715]
[1765407233111,0.68349,92601.0,92600.0,0.42943715]
[1765407233315,0.68349,92601.0,92600.0,0.93199715]
[1765407233507,0.68349,92601.0,92600.0,0.8741571]
[1765407234004,0.68349,92601.0,92600.0,1.2151671]
[1765407234804,0.68449,92601.0,92600.0,1.2151671]
[1765407235512,0.20309945,92640.0,92609.0,0.6777061]
[1765407235808,0.34277,92627.0,92626.0,0.0107941]
[1765407236010,0.68349,92627.0,92626.0,0.5133141]
[1765407236407,0.20202,92628.0,92627.0,0.60538]
[1765407237322,0.20202,92628.0,92627.0,1.32698]
[1765407237520,0.20202,92634.0,92627.0,1.32698]
[1765407237706,0.88551,92634.0,92633.0,0.6161733]
[1765407237907,0.00010658,92637.0,92636.0,0.6161729]
[1765407238106,0.00010658,92637.0,92636.0,1.8402129]
[1765407239316,0.00010658,92637.0,92636.0,1.89785619]
[1765407240217,0.00510658,92637.0,92636.0,1.89785619]
[1765407240609,0.01210658,92637.0,92636.0,1.89785619]
[1765407241021,0.01210658,92637.0,92636.0,1.8402129]
[1765407242114,0.01210658,92637.0,92636.0,1.9402129]
[1765407242624,0.89396,92664.0,92663.0,0.5898098]
[1765407242812,0.89396,92664.0,92663.0,1.1821298]
[1765407243010,0.89396,92664.0,92663.0,1.0921298]
[1765407243309,0.89396,92664.0,92663.0,1.8137298]
[1765407244116,0.68834,92663.0,92662.0,0.05746979]
[1765407244314,0.68834,92655.0,92654.0,0.00016193]
[1765407244509,0.6991308,92654.0,92653.0,4.71e-06]
[1765407244720,0.6991312,92651.0,92650.0,0.02874867]
[1765407244909,0.0107927,92638.0,92631.0,0.0766539]
[1765407245110,0.68834,92631.0,92630.0,0.0107936]
[1765407245310,0.68834,92631.0,92630.0,0.54822157]
[1765407245505,0.68834,92631.0,92630.0,1.22573157]
[1765407245812,0.68834,92631.0,92630.0,0.54822157]
[1765407247024,0.68834,92631.0,92630.0,0.54922157]
[1765407248410,0.68834,92631.0,92630.0,0.04698157]
[1765407248612,1.08834,92631.0,92630.0,0.03618797]
[1765407248814,0.68834,92626.0,92625.0,0.863]
[1765407249012,0.6991341,92626.0,92625.0,0.863]
[1765407250006,0.637435,92618.0,92617.0,7.656e-05]
[1765407250213,0.62648,92605.0,92604.0,0.0107966]
[1765407250413,0.98728,92605.0,92604.0,0.0107966]
[1765407250613,0.62648,92604.0,92603.0,0.5022]
[1765407251019,0.6372767,92604.0,92603.0,0.5022]
[1765407251227,0.6373625,92604.0,92603.0,0.5022]
[1765407252114,0.62648,92595.0,92594.0,0.00016193]
[1765407252312,0.62648,92595.0,92594.0,0.50236193]
[1765407253515,0.63048,92595.0,92594.0,0.50236193]
[1765407253820,0.63148,92595.0,92594.0,0.50236193]
[1765407254221,0.63148,92595.0,92594.0,0.00016193]
[1765407254414,0.99128,92595.0,92594.0,0.00016193]
[1765407254721,0.99328,92595.0,92594.0,0.00016193]
[1765407255716,0.99528,92595.0,92594.0,0.00016193]
[1765407256220,0.98728,92595.0,92594.0,0.00016193]
[1765407256419,0.99428,92595.0,92594.0,0.00016193]
[1765407256821,0.98828,92595.0,92594.0,0.00016193]
[1765407257014,0.99328,92595.0,92594.0,0.00016193]
[1765407257217,0.99628,92595.0,92594.0,0.00016193]
[1765407257723,0.99628,92595.0,92594.0,0.68133193]
[1765407258621,0.99628,92595.0,92594.0,0.32638193]
[1765407258821,0.99628,92595.0,92594.0,0.00016193]
[1765407259625,0.99228,92595.0,92594.0,0.00016193]
[1765407259830,0.99428,92595.0,92594.0,0.00016193]
[1765407260127,0.99528,92595.0,92594.0,0.00016193]
[1765407260511,0.99328,92595.0,92594.0,0.00016193]
[1765407260716,0.99628,92595.0,92594.0,0.00016193]
[1765407260926,0.99628,92595.0,92594.0,0.03243115]
[1765407267930,0.99028,92595.0,92594.0,0.03243115]
[1765407268124,0.99628,92595.0,92594.0,0.03243115]
[1765407268519,0.99028,92595.0,92594.0,0.03243115]
[1765407268719,0.99728,92595.0,92594.0,0.03243115]
[1765407269122,0.99828,92595.0,92594.0,0.03243115]
[1765407271032,0.99428,92595.0,92594.0,0.03243115]
[1765407271234,0.99828,92595.0,92594.0,0.03243115]
[1765407271427,0.99128,92595.0,92594.0,0.03243115]
[1765407271632,0.99828,92595.0,92594.0,0.03243115]
[1765407271828,0.99428,92595.0,92594.0,0.03243115]
[1765407272030,1.0020777,92595.0,92594.0,0.03243115]
[1765407272238,0.6482777,92595.0,92594.0,0.03243115]
[1765407272537,1.3698777,92595.0,92594.0,0.03243115]
[1765407274331,1.7698777,92595.0,92594.0,0.03243115]
[1765407274536,1.3699635,92595.0,92594.0,0.00215373]
[1765407274732,0.6372791,92583.0,92581.0,0.03867351]
[1765407274933,0.98728,92582.0,92581.0,0.03867351]
[1765407275227,0.3240394,92581.0,92576.0,0.05784989]
[1765407275434,0.62648,92576.0,92575.0,0.48062]
[1765407275737,0.6265658,92576.0,92575.0,0.48062]
[1765407276441,0.0108004,92572.0,92571.0,0.03869186]
[1765407276735,0.9980804,92572.0,92571.0,0.03869186]
[1765407277233,0.62648,92571.0,92570.0,0.03869186]
[1765407277530,0.6372806,92570.0,92569.0,0.00016202]
[1765407279237,0.6382806,92570.0,92569.0,0.00016202]
[1765407279634,0.6432806,92570.0,92569.0,0.00016202]
[1765407286129,1.3648806,92570.0,92569.0,0.00016202]
[1765407286838,1.3648806,92570.0,92569.0,0.03126717]
[1765407301047,1.3648806,92570.0,92555.0,0.05784989]
[1765407301048,0.0108018,92560.0,92557.0,0.03877614]
[1765407301248,0.0108018,92560.0,92535.0,0.29822738]
[1765407301249,0.5860425,92554.0,92553.0,1.1e-06]
[1765407301454,0.5858039,92542.0,92541.0,0.03877614]
[1765407301647,0.5858039,92542.0,92530.0,0.3425335]
[1765407301648,0.575,92541.0,92540.0,0.03877614]
[1765407301949,0.575,92541.0,92535.0,0.36533614]
[1765407301950,0.575,92536.0,92535.0,0.36533614]
[1765407302149,0.575,92536.0,92535.0,0.65917]
[1765407302348,0.57511322,92536.0,92535.0,0.65917]
[1765407302954,0.57811322,92536.0,92535.0,0.65917]
[1765407304445,0.58311322,92536.0,92535.0,0.65917]
[1765407304844,0.57811322,92536.0,92535.0,0.65917]
[1765407305045,0.58211322,92536.0,92535.0,0.65917]
[1765407305344,0.29461322,92536.0,92535.0,0.6882554]
[1765407305553,0.35967991,92539.0,92538.0,0.86158]
[1765407305857,0.36096202,92550.0,92549.0,0.6699731]
[1765407306057,0.36096202,92550.0,92549.0,1.1725331]
[1765407306241,0.36096202,92550.0,92549.0,1.5725331]
[1765407306445,0.3608,92564.0,92563.0,0.65917]
[1765407306847,9.368e-05,92564.0,92563.0,0.68825923]
[1765407307849,0.00209368,92564.0,92563.0,0.68825923]
[1765407308249,9.368e-05,92564.0,92563.0,0.68825923]
[1765407308558,0.00209368,92564.0,92563.0,0.68825923]
[1765407309858,0.33402368,92564.0,92563.0,0.68825923]
[1765407310049,0.67813368,92564.0,92563.0,0.68825923]
[1765407310245,0.67613368,92564.0,92563.0,1.04905923]
[1765407310450,0.67713368,92564.0,92563.0,1.04905923]
[1765407310951,0.33302368,92564.0,92563.0,1.04905923]
[1765407312253,0.33302368,92564.0,92563.0,1.01997]
[1765407312559,0.67713368,92564.0,92563.0,1.01997]
[1765407313058,0.67713368,92564.0,92563.0,1.04922569]
[1765407313360,0.67613368,92564.0,92563.0,1.04922569]
[1765407313553,0.67713368,92564.0,92563.0,1.04922569]
[1765407313953,9.368e-05,92564.0,92563.0,1.04922569]
[1765407314150,0.00109368,92564.0,92563.0,1.04922569]
[1765407314356,0.33193,92569.0,92568.0,0.86158]
[1765407314557,0.33193,92569.0,92568.0,0.89083569]
[1765407314962,0.33193,92572.0,92571.0,0.6831905]
[1765407315162,0.33193,92572.0,92571.0,1.07324619]
[1765407315761,0.00016202,92573.0,92572.0,0.68245]
[1765407315962,0.00016202,92573.0,92572.0,1.18497]
[1765407316765,0.6843997,92578.0,92577.0,0.68245]
[1765407316965,0.6843997,92578.0,92577.0,0.6932498]
[1765407316966,0.6736,92578.0,92577.0,0.6932498]
[1765407317259,0.6736,92578.0,92577.0,0.72250006]
[1765407318058,0.6756,92578.0,92577.0,0.72250006]
[1765407318264,0.6766,92578.0,92577.0,0.72250006]
[1765407318464,0.6746,92578.0,92577.0,0.72250006]
[1765407318664,0.6756,92578.0,92577.0,0.72250006]
[1765407322066,0.6746,92578.0,92577.0,1.08330006]
[1765407322267,0.6756,92578.0,92577.0,1.08330006]
[1765407324071,0.33116,92578.0,92577.0,1.08330006]
[1765407324769,0.33016,92578.0,92577.0,1.08330006]
[1765407324971,0.33116,92578.0,92577.0,1.08330006]
[1765407325972,0.6756,92578.0,92577.0,1.08330006]
[1765407327075,0.6746,92578.0,92577.0,1.08330006]
[1765407327574,0.6736,92578.0,92577.0,1.08330006]
[1765407327770,0.6746,92578.0,92577.0,1.08330006]
[1765407328156,0.3409597,92578.0,92577.0,1.08330006]
[1765407328360,0.6911897,92578.0,92577.0,1.0540498]
[1765407328568,0.68039,92578.0,92577.0,1.0540498]
[1765407329573,0.6911897,92578.0,92577.0,1.0540498]
[1765407330771,0.6901897,92578.0,92577.0,1.0540498]
[1765407330964,0.6911897,92578.0,92577.0,1.0540498]
[1765407331165,0.6921897,92578.0,92577.0,1.0540498]
[1765407332264,0.6921897,92578.0,92577.0,1.08326478]
[1765407338866,0.6921897,92578.0,92577.0,0.72246478]
[1765407339063,0.6921897,92578.0,92577.0,1.08326478]
[1765407339575,0.6921897,92578.0,92577.0,0.72246478]
[1765407339774,0.6921897,92578.0,92577.0,1.08326478]
[1765407342469,0.6921897,92578.0,92577.0,1.11235401]
[1765407343375,0.6921897,92578.0,92577.0,1.08326478]
[1765407346269,0.6921897,92578.0,92577.0,1.12205042]
[1765407347277,0.6921897,92578.0,92577.0,1.08326478]
[1765407347970,0.68139,92578.0,92577.0,1.08326478]
[1765407353879,0.68039,92578.0,92577.0,1.08326478]
[1765407354083,0.68139,92578.0,92577.0,1.08326478]
[1765407354385,0.68039,92578.0,92577.0,1.08326478]
[1765407354580,0.68139,92578.0,92577.0,1.08326478]
[1765407354985,0.68039,92578.0,92577.0,1.08326478]
[1765407355184,0.68139,92578.0,92577.0,1.08326478]
[1765407356685,0.68139,92578.0,92577.0,1.58566478]
[1765407358087,0.67939,92578.0,92577.0,1.58566478]
[1765407358278,0.68139,92578.0,92577.0,1.58566478]
[1765407358687,0.68039,92578.0,92577.0,1.58566478]
[1765407358885,0.68139,92578.0,92577.0,1.58566478]
[1765407360490,0.68039,92578.0,92577.0,1.58566478]
[1765407360686,0.68139,92578.0,92577.0,1.58566478]
[1765407361277,0.68039,92578.0,92577.0,1.58566478]
[1765407361478,0.68139,92578.0,92577.0,1.58566478]
[1765407361990,0.68139,92578.0,92577.0,1.23983478]
[1765407363285,0.68039,92578.0,92577.0,1.23983478]
[1765407363893,0.67939,92578.0,92577.0,1.23983478]
[1765407364092,0.68039,92578.0,92577.0,1.23983478]
[1765407364799,0.68039,92578.0,92577.0,1.59346478]
[1765407365794,0.001,92578.0,92577.0,1.59346478]
[1765407365990,0.00016202,92587.0,92577.0,1.64051487]
[1765407366192,0.35231,92604.0,92603.0,0.68214]
[1765407366380,0.3608,92608.0,92607.0,0.6929363]
[1765407366581,0.3608,92608.0,92607.0,0.72215128]
[1765407367791,0.004,92608.0,92607.0,0.72215128]
[1765407368401,0.009,92608.0,92607.0,0.72215128]
[1765407368585,0.71327176,92617.0,92616.0,0.6929353]
[1765407368893,0.71327176,92617.0,92616.0,1.22546474]
[1765407369681,0.71927176,92617.0,92616.0,1.22546474]
[1765407370284,0.35847176,92617.0,92616.0,1.58626474]
[1765407370485,0.00616176,92617.0,92616.0,1.58622831]
[1765407370892,0.01116176,92617.0,92616.0,1.58622831]
[1765407371795,0.00616176,92617.0,92616.0,1.58622831]
[1765407372305,0.00016176,92617.0,92616.0,1.58622831]
[1765407372800,0.0107936,92631.0,92630.0,0.6929336]
[1765407372801,0.70005,92631.0,92630.0,0.6929336]
[1765407373007,0.70005,92631.0,92630.0,1.7634736]
[1765407373895,0.70105,92631.0,92630.0,1.7634736]
[1765407374589,0.001,92631.0,92630.0,1.7634736]